Cogmind - Beta 13 @@@ ROGUE MODE // 2024.04.13 @ 07:17:49 Player: JTMusky Result: Destroyed by S-10 Pest with Light Assault Rifle Performance ------------- Evolutions (0) 0 Regions Visited (1) 200 Robots Destroyed (6) 30 Value Destroyed (111) 111 Prototype IDs (0) 0 Alien Tech Used (0) 0 Bonus (0) 0 TOTAL SCORE: 341 Bonus ------- None Cogmind --------- Core Integrity 0/250 Matter 300/300 Energy 100/100 System Corruption 0% Temperature Cool (0) Movement Core (100) Ox1 Location -10/Materials Parts ------- > --- POWER (1) -------- (None) > --- PROPULSION (2) --- (None) > --- UTILITY (2) ------ Small Storage Unit Structural Scanner > --- WEAPON (2) ------- (None) > --- INVENTORY (8) ---- Light Ion Engine Light Treads Light Treads Small Storage Unit Seismic Detector EM Pulse Gun Datajack Peak State ------------ > --- POWER ------------ Ion Engine > --- PROPULSION ------- Aluminum Leg Aluminum Leg > --- UTILITY ---------- Small Storage Unit Seismic Detector > --- WEAPON ----------- Assault Rifle Light Assault Rifle > --- INVENTORY -------- Light Ion Engine Light Treads Light Treads Compact Wheel Compact Wheel Small Storage Unit Tractor Beam EM Pulse Gun [Rating: 7] Favorites ----------- Power Ion Engine Engine Ion Engine Propulsion Aluminum Leg Leg Aluminum Leg Wheel Compact Wheel Utility Small Storage Unit Device Structural Scanner Storage Small Storage Unit Weapon Light Assault Rifle Ballistic Gun Light Assault Rifle Build | -11 -10 ------- Run | Yrd Mat Slots Evolved . | . . Power . | . . Propulsion . | . . Utility . | . . Weapon . | . . Parts Attached 10 | 9 1 Power 1 | 1 . Engine 1 | 1 . Core . | . . Reactor . | . . Propulsion 4 | 4 . Treads . | . . Leg 3 | 3 . Wheel 1 | 1 . Hover . | . . Flight . | . . Utility 3 | 2 1 Device 2 | 1 1 Storage 1 | 1 . Processor . | . . Hackware . | . . Protection . | . . Artifact . | . . Weapon 2 | 2 . Energy Gun . | . . Energy Cannon . | . . Ballistic Gun 2 | 2 . Ballistic Cannon . | . . Launcher . | . . Special Weapon . | . . Impact Weapon . | . . Slashing Weapon . | . . Piercing Weapon . | . . Special Melee Weapon . | . . Unidentified Prototypes . | . . Parts Lost 5 | . 5 Power 1 | . 1 Propulsion 2 | . 2 Utility . | . . Weapon 2 | . 2 Highest Loss Streak 4 | . 4 To Critical Strikes . | . . Average Slot Usage (%) 85 | . 85 Engine 11 | . 11 Leg 24 | . 24 Device 14 | . 14 Storage 14 | . 14 Ballistic Gun 20 | . 20 Naked Turns . | . . Heaviest Build 14 | 14 14 Greatest Support 20 | 20 20 Greatest Overweight (x) 1 | 1 1 Average Overweight (x) . | . . Largest Inventory Capacity 8 | 8 8 Average Capacity 7 | 7 8 Most Carried 8 | 8 8 Average Carried 6 | 6 7 Final Capacity 8 | 8 8 Final Carried 8 | 8 7 Class Distribution -------------------- 100% | Mutant Dominant Class ---------------- Mutant | -10/Materials Resources | -11 -10 ----------- Run | Yrd Mat Matter Collected 421 | 281 140 Remotely . | . . Salvage Created 212 | 102 110 Parts 13 | 8 5 Haulers Intercepted . | . . Recyclers Shooed . | . . Parts Field Recycled . | . . Retrieved Matter . | . . Parts Self-Destructed . | . . Prevented . | . . Kills | -11 -10 ------- Run | Yrd Mat Combat Hostiles Destroyed 3 | . 3 Guns 3 | . 3 Classes Destroyed 4 | 2 2 Tunneler 2 | 2 . Recycler 1 | 1 . Swarmer 1 | . 1 Grunt 2 | . 2 Best Kill Streak 2 | 1 2 Combat Bots Only 2 | . 2 Max Kills in Single Turn 1 | 1 1 Gunslinging . | . . Exploded . | . . Melee . | . . Uniques/NPCs Destroyed . | . . Combat | -11 -10 -------- Run | Yrd Mat Hostile Shots Fired 97 | . 97 Missed 24 | . 24 Damage Taken 765 | . 765 Core 258 | . 258 Absorbed by Shields . | . . Core Remaining (%) 100 | 100 . Volleys Fired 45 | 18 27 Largest 2 | 2 2 Hottest 40 | 40 40 Shots Fired 75 | 36 39 Gun 75 | 36 39 Cannon . | . . Launcher . | . . Special . | . . Kinetic 75 | 36 39 Thermal . | . . Explosive . | . . Electromagnetic . | . . Robot Hit Streak 7 | 6 7 Robot Miss Streak 5 | 5 3 Penetration Max . | . . Secondary Targets . | . . Shots Hit Robots 43 | 21 22 Core Hits 15 | 6 9 Critical Kills 1 | . 1 Critical Parts Destroyed . | . . Critical Strikes 1 | . 1 Destroy 1 | . 1 Melee Attacks . | . . Impact . | . . Slashing . | . . Piercing . | . . Sneak Attacks . | . . Combat Hostiles . | . . Follow-up Attacks . | . . Damage Inflicted 441 | 229 212 Guns 441 | 229 212 Cannons . | . . Explosions . | . . Melee . | . . Ramming . | . . Kinetic 441 | 229 212 Thermal . | . . Explosive . | . . Electromagnetic . | . . Impact . | . . Slashing . | . . Piercing . | . . Highest Corruption . | . . Average Corruption . | . . Corruption Purged . | . . Corruption Blocked . | . . Overload Shots . | . . Overflow Damage . | . . Projectiles . | . . Explosions . | . . Melee . | . . Knockbacks . | . . Impact . | . . Kinetic . | . . Secondary . | . . Self-Inflicted Damage . | . . Shots . | . . Rammed . | . . Targets Rammed . | . . Kicked . | . . Crushed . | . . Highest Temperature 36 | . 36 Average Temperature 13 | . 13 Received Heat Transfer 159 | . 159 Siege Activations . | . . Robots Corrupted . | . . Combat Hostiles . | . . Parts Fried . | . . Impact Corruptions . | . . Robots Melted . | . . Combat Hostiles . | . . Parts Melted . | . . Heat Transferred . | . . Parts Sabotaged . | . . Parts Stolen . | . . Parts Stripped . | . . Power Chain Reactions . | . . Alert | -11 -10 ------- Run | Yrd Mat Peak Influence 125 | 15 125 Initial . | . . Average 31 | 3 65 Maximum Alert Level . | . . Low Security (%) 100 | 100 100 Level 1 . | . . Level 2 . | . . Level 3 . | . . Level 4 . | . . Level 5 . | . . High Security . | . . Max Security . | . . Squads Dispatched 1 | . 1 Investigation . | . . Extermination . | . . Reinforcement 1 | . 1 Assault . | . . Garrison . | . . Intercept . | . . Searches Triggered . | . . Construction Impeded . | . . Haulers Reinforced . | . . Active Scanning Responses . | . . Cargo Convoy Interrupts . | . . Stealth | -11 -10 --------- Run | Yrd Mat Distress Signals . | . . Communications Jammed . | . . Distress Signals . | . . Times Spotted 19 | . 19 Peak Tracking Total 6 | . 6 Tactical Retreats 1 | . 1 Traps | -11 -10 ------- Run | Yrd Mat Traps Triggered . | . . Indirectly . | . . Trap Hack Attempts . | . . Triggered . | . . Disarmed . | . . Reprogrammed . | . . Reused . | . . Traps Extracted . | . . Installed . | . . Triggered . | . . Machines | -11 -10 ---------- Run | Yrd Mat Machines Disabled . | . . Max in Single Turn . | . . Machines Repaired . | . . Machines Dismantled . | . . Machines Sabotaged . | . . Overloaded Fab Kills . | . . Hacking | -11 -10 --------- Run | Yrd Mat Machines Accessed 1 | . 1 Terminals 1 | . 1 Fabricators . | . . Repair Stations . | . . Recycling Units . | . . Scanalyzers . | . . Garrison Access . | . . Total Hacks 5 | . 5 Successful 2 | . 2 Failed 3 | . 3 Catastrophic . | . . Database Lockouts . | . . Manual 1 | . 1 Terminals 5 | . 5 Fabricators . | . . Repair Stations . | . . Recycling Units . | . . Scanalyzers . | . . Garrison Access . | . . Terminal Hacks 2 | . 2 Alert Level 1 | . 1 Investigation Status 1 | . 1 Fabricator Hacks . | . . Repair Station Hacks . | . . Recycling Unit Hacks . | . . Scanalyzer . | . . Garrison Access Hacks . | . . Unauthorized Hacks . | . . Terminals . | . . Fabricators . | . . Repair Stations . | . . Recycling Units . | . . Scanalyzers . | . . Garrison Access . | . . Data Cores Recovered . | . . Used . | . . Hacking Detections 2 | . 2 Full Trace Events . | . . Feedback Events . | . . Feedback Blocked . | . . Robot Schematics Acquired . | . . Robots Built . | . . Authchips . | . . Time . | . . Total Robot Build Rating . | . . Part Schematics Acquired . | . . Parts Built . | . . Authchips . | . . Time . | . . Total Part Build Rating . | . . Parts Repaired . | . . Time . | . . Parts Recycled . | . . Recycled Matter . | . . Retrieved Matter . | . . Retrieved Components . | . . Parts Scanalyzed . | . . Part Schematics Acquired . | . . Parts Damaged . | . . Bothacking | -11 -10 ------------ Run | Yrd Mat Used RIF Installer . | . . Robots Hacked . | . . Non-combat . | . . Combat . | . . Robot Hacks Applied . | . . Relay Couplers Released . | . . Fabnet Peak Effective % . | . . Robots Rewired . | . . Allies Hacked . | . . Hacks Repelled . | . . Allies | -11 -10 -------- Run | Yrd Mat Total Allies . | . . Largest Group . | . . Highest-Rated Group . | . . Highest-Rated Ally . | . . Total Orders . | . . Ally Attacks . | . . Total Damage . | . . Kills . | . . Allies Corrupted . | . . Allies Melted . | . . Intel | -11 -10 ------- Run | Yrd Mat Robot Analysis Total . | . . Derelict Logs Recovered . | . . Drone Launches . | . . Drone Recoveries . | . . Exploration | -11 -10 ------------- Run | Yrd Mat Turns Passed 743 | 403 340 Spaces Moved 399 | 174 225 Core 63 | 20 43 Treads . | . . Legs 336 | 154 182 Wheels . | . . Hover . | . . Flight . | . . Fastest Speed 50 | 50 100 Average Speed 116 | 115 116 Slowest Speed 190 | 190 120 Overloaded Moves . | . . Propulsion Burnouts . | . . Robots Hopped . | . . Cave-ins Triggered . | . . Exploration Rate (%) 28 | 7 49 Regions Visited 1 Branch Regions . Pre-discovered Areas . | . . Known Exits Taken . | . . Unknown Exits Taken 1 | 1 . Scrap Searched . | . . Spaces Dug . | . . Terrain Destroyed . | . . Melee . | . . Projectile . | . . AOE . | . . Terrain Rammed . | . . Walls Destroyed . | . . Machines Disabled . | . . Actions | -11 -10 --------- Run | Yrd Mat Total 610 | 339 271 Wait 141 | 128 13 Move 398 | 173 225 Hop . | . . Pick Up 12 | 10 2 Fast Attach 6 | 6 . Attach 1 | 1 . Detach . | . . Swap 3 | 2 1 Drop 4 | 1 3 Fire 45 | 18 27 Melee . | . . Ram . | . . Kick . | . . Crush . | . . Escape Stasis . | . . Rewire . | . . Trap . | . . Miscellaneous . | . . Route ------- -11/Scrapyard -10/Materials (discovered 1 exit: [*Min]) History --------- Turn | Location | Event 24 | -11/Scrapyard | Discovered new exit (range 15) 404 | -11/Scrapyard | Entered Materials 405 | -10/Materials | Build established: Mutant 474 | -10/Materials | Discovered new exit (range 11) 689 | -10/Materials | Core integrity fell below 50% 717 | -10/Materials | Core integrity fell below 20% 732 | -10/Materials | Lost 4 parts (1p2n1w) 744 | -10/Materials | Destroyed by S-10 Pest with Light Assault Rifle Last Messages --------------- 00649_ U-05 Engineer lays Concrete. 00653_ U-05 Engineer builds a Wall. 00654_ Connecting with Terminal... >>Alert(Check) Current Alert Level: Low Security >>Enumerate(Investigations) Retrieving latest reported positions... No active investigation squads found. 00655_ U-05 Engineer lays Concrete. 00657_ U-05 Engineer builds a Wall. 00657_ U-05 Engineer lays Concrete. 00684_ S-10 Pest suffers critical hit (Destroy). 00684_ S-10 Pest destroyed. 00684_ Ion Engine destroyed. 00684_ Lgt. Assault Rifle destroyed. 00692_ U-05 Engineer lays Concrete. 00693_ U-05 Engineer builds a Door. 00699_ Aluminum Leg destroyed. 00700_ U-05 Engineer builds a Wall. 00701_ Aluminum Leg destroyed. Map ----- +----------------------------------------------------+ | | | | | | | | | | | | | | | | | ?????????????????????????????????????????????????? | | ?????????????????????????????????????????????????? | | ?????????????????????????????????????????????????? | | ??????????????????#######????????????????????????? | | ??????????????????#######????????????????????????? | | ?????????????????? #????????????????????????? | | ???????????????????? ##???????????????????????? | | ??????????????????? ##???????????????????????? | | ???????????????????## ##???????????????????????? | | ???????????????????## ##???????????????????????? | | ???????????????????## ##?????????????????????### | | ???????????????????## ##?????????????????????# | | ???????????????????## ##???###???????????????# | | ??????????????????"## ###??###???????????????# | | ??????????????????### ### ### ????????# | | ????????????????? ## ### ######+#####??????# | | ????????????????? ## ##??????# | | #########???????? + @ ######### | | #########????????### a ## ## | | ##??????##### s ########### ## ## | | """ ##??????#######+############# ? ## ## | | """ ########## # ! # ?# ## | | """ ########## # + ## ## | | / ## / """ # ## ## | | """ # ## # """ # ## ## | | """ # ## # """ # ####+### | | """ # ## # %# # | | # ##############+###### # | | ###+#### ########## # # | | # ## ##??????## """ # # #### | | ## ##??????## "Y" """ # # #??#### | | + ##??????## """ # # #?????? | | ## ########## """ # # #?????? | | # ## ########## # # #?????? | | ## ########+## ########+#### # #?????? | | ## ###### # ## !#? | | # ##??## < !#? | | ## ###?## "" !#? | | ## ###### ## ## "" !#? | | # ##### ## "!"!" ## "T ##### !##? | | #%* ##""!"!""## "" ###### ####?? | | + ########### "" ###??###+####???? | +----------------------------------------------------+ Best States ------------- Heat Dissipation 25 Energy Generation 10 Energy Capacity 250 Matter Stores 300 Matter Capacity 300 Sight Range 16 Terrain Scan Density 10 Evasion (%) 55 Item Schematics ----------------- None Robot Schematics ------------------ None Fabricated ------------ Nothing Alien Tech Used ----------------- None Achievements -------------- None Challenges ------------ None Game ------ Seed FocalDisruptorDoomcannon Manual? 0 Play Time 00:31:58 Cumulative 7.6 hours Start 2024.04.13 @ 06:23:31 End 2024.04.13 @ 07:17:49 Sessions 1 Manual Loads 0 Difficulty Rogue Special Mode None Game No. 8 Rogue 8 Adventurer 0 Explorer 0 Win Type - Total 0 Types 0/0/0/0/0/0/0/0/0 Lore% 4 Gallery% 7 Achievement% 5 Wizard Run 0 Options --------- Layout 2 ASCII 1 Keyboard 1 Movement Vi Keybinds 0 Fullscreen 2 Font 40/SmallcapsGlow Map View 50x44 Zoom Use 6% Tactical HUD 1 Map Filters NONE Filters NONE Steam 0 RUN: 5473e911-c324-4ed9-b1fa-639a65d19fda